fUST/lending_fUST_20250819
["ID","MTS","AMOUNT","RATE_DAILY","PERIOD"]
[380150640,1755577841152,-480.0,0.00019178,2]
[380150641,1755577841162,-480.0,0.00019178,2]
[380150642,1755577841171,-480.0,0.00019178,2]
[380150643,1755577841180,-461.14448614,0.00019178,2]
[380150644,1755577841189,-2321.86,0.00019178,2]
[380150645,1755577841199,-480.0,0.00019178,2]
[380150646,1755577841209,-715.41,0.00019178,2]
[380150647,1755577841218,-420.0,0.00019178,2]
[380150648,1755577841227,-707.57,0.00019178,2]
[380150649,1755577841236,-480.0,0.00019178,2]
[380150650,1755577841245,-460.0,0.00019178,2]
[380150651,1755577841254,-1860.57,0.00019178,2]
[380150652,1755577841264,-480.0,0.00019178,2]
[380150653,1755577841273,-481.03450685,0.00019178,2]
[380150654,1755577841283,-480.0,0.00019178,2]
[380150655,1755577841292,-421.74988915,0.00019178,2]
[380150656,1755577841301,-480.0,0.00019178,2]
[380150657,1755577841310,-448.84922466,0.00019178,2]
[380150658,1755577841319,-480.0,0.00019178,2]
[380150659,1755577841328,-2815.24,0.00019178,2]
[380150660,1755577841337,-480.0,0.00019178,2]
[380150661,1755577841349,-480.0,0.00019178,2]
[380150662,1755577841359,-460.0,0.00019178,2]
[380150663,1755577841368,-480.0,0.00019178,2]
[380150664,1755577841377,-480.0,0.00019178,2]
[380150665,1755577841387,-480.0,0.00019178,2]
[380150666,1755577841397,-480.0,0.00019178,2]
[380150667,1755577841405,-500.0,0.00019178,2]
[380150668,1755577841415,-480.0,0.00019178,2]
[380150669,1755577841424,-237.59322086,0.00019178,2]
[380150670,1755577841433,-480.0,0.00019178,2]
[380150671,1755577841442,-480.0,0.00019178,2]
[380150672,1755577841452,-824.74,0.00019178,2]
[380150673,1755577841461,-462.3873292,0.00019178,2]
[380150674,1755577841470,-480.0,0.00019178,2]
[380150675,1755577841566,-480.0,0.00019178,2]
[380150676,1755577841576,-619.59,0.00019178,2]
[380150677,1755577841585,-488.86241097,0.00019178,2]
[380150678,1755577841595,-5644.41,0.00019178,2]
[380150679,1755577841607,-480.0,0.00019178,2]
[380150680,1755577841616,-423.66409387,0.00019178,2]
[380150681,1755577841625,-460.0,0.00019178,2]
[380150682,1755577841634,-480.0,0.00019178,2]
[380150683,1755577841643,-462.47119599,0.00019178,2]
[380150684,1755577841652,-480.0,0.00019178,2]
[380150685,1755577841661,-480.0,0.00019178,2]
[380150686,1755577841673,-480.0,0.00019178,2]
[380150687,1755577841683,-554.70261636,0.00019178,2]
[380150688,1755577841692,-1736.61,0.00019178,2]
[380150689,1755577841701,-640.22,0.00019178,2]
[380150690,1755577841711,-452.74339241,0.00019178,2]
[380150691,1755577841720,-480.0,0.00019178,2]
[380150692,1755577841729,-371.01508812,0.00019178,2]
[380150693,1755577841738,-480.0,0.00019178,2]
[380150694,1755577841748,-460.0,0.00019178,2]
[380150695,1755577841762,-759.73,0.00019178,2]
[380150696,1755577841773,-1942.53,0.00019178,2]
[380150697,1755577841783,-480.0,0.00019178,2]
[380150698,1755577841793,-508.66346385,0.00019178,2]
[380150699,1755577841802,-480.0,0.00019178,2]
[380150700,1755577841811,-499.4,0.00019178,2]
[380150701,1755577841820,-480.0,0.00019178,2]
[380150702,1755577841829,-480.0,0.00019178,2]
[380150703,1755577841839,-480.0,0.00019178,2]
[380150704,1755577841849,-480.0,0.00019178,2]
[380150705,1755577841859,-745.42,0.00019178,2]
[380150706,1755577841868,-480.0,0.00019178,2]
[380150707,1755577841877,-480.0,0.00019178,2]
[380150708,1755577841886,-460.61306758,0.00019178,2]
[380150709,1755577841895,-480.0,0.00019178,2]
[380150710,1755577841904,-548.44,0.00019178,2]
[380150711,1755577841913,-480.0,0.00019178,2]
[380150712,1755577841922,-461.31131517,0.00019178,2]
[380150713,1755577841932,-666.0,0.00019178,2]
[380150714,1755577841941,-500.0,0.00019178,2]
[380150715,1755577841951,-5000.0,0.00019178,2]
[380150716,1755577841967,-5000.0,0.00019178,2]
[380150717,1755577841979,-201.99078818,0.00019284,2]
[380150718,1755577841988,-5215.60257711,0.00019329,2]
[380150719,1755577841997,-6731.80299136,0.00019352,2]
[380150720,1755577842006,-179.71246006,0.00019352,2]
[380150721,1755577842016,-151.0,0.00019452,2]
[380150722,1755577842025,-39.70662034,0.00019452,2]
[380150723,1755577842187,-111.29337966,0.00019452,2]
[380150725,1755577842198,-151.0,0.00019452,2]
[380150727,1755577842208,-263.33283309,0.00019452,2]
[380150728,1755577842319,-480.0,0.00019178,2]
[380150729,1755577842329,-480.0,0.00019178,2]
[380150730,1755577842339,-480.0,0.00019178,2]
[380150731,1755577842350,-236.66716691,0.00019452,2]
[380150732,1755577842359,-151.0,0.00019452,2]
[380150733,1755577842369,-500.0,0.00019452,2]
[380150734,1755577842378,-151.0,0.00019452,2]
[380150735,1755577842388,-151.0,0.00019452,2]
[380150736,1755577842397,-151.0,0.00019452,2]
[380150737,1755577842406,-151.0,0.00019452,2]
[380150738,1755577842415,-151.0,0.00019452,2]
[380150739,1755577842424,-151.0,0.00019452,2]
[380150740,1755577842433,-151.0,0.00019452,2]
[380150741,1755577842442,-151.0,0.00019452,2]
[380150742,1755577842452,-151.0,0.00019452,2]
[380150743,1755577842461,-418.0,0.00019452,2]
[380150744,1755577842470,-277.62046848,0.00019452,2]
[380150745,1755577842479,-154.42863123,0.00019452,2]
[380150746,1755577842489,-151.0,0.00019452,2]
[380150748,1755577842498,-151.0,0.00019452,2]
[380150749,1755577842508,-155.04442085,0.00019452,2]
[380150750,1755577842518,-500.0,0.00019452,2]
[380150751,1755577842527,-151.30913405,0.00019452,2]
[380150752,1755577842537,-151.0,0.00019452,2]
[380150753,1755577842546,-151.41735249,0.00019452,2]
[380150754,1755577842556,-151.0,0.00019452,2]
[380150755,1755577842565,-151.0,0.00019452,2]
[380150756,1755577842574,-500.0,0.00019452,2]
[380150757,1755577842584,-565.67227951,0.00019452,2]
[380150758,1755577842594,-480.0,0.00019452,2]
[380150759,1755577842605,-480.0,0.00019452,2]
[380150760,1755577842619,-480.0,0.00019452,2]
[380150761,1755577842628,-480.0,0.00019452,2]
[380150763,1755577842638,-480.0,0.00019452,2]
[380150764,1755577842648,-460.0,0.00019452,2]
[380150765,1755577842657,-480.0,0.00019452,2]
[380150766,1755577842667,-480.0,0.00019452,2]
[380150767,1755577842676,-361.35166758,0.00019452,2]
[380150768,1755577842951,-480.0,0.00019178,2]
[380150769,1755577842960,-480.0,0.00019178,2]
[380150770,1755577842970,-480.0,0.00019178,2]
[380150771,1755577842979,-117.09715419,0.00019452,2]
[380150772,1755577842988,-182.00006287,0.00019452,2]
[380150773,1755577842997,-480.0,0.00019452,2]
[380150774,1755577843007,-5292.0,0.00019452,2]
[380150775,1755577843017,-480.0,0.00019452,2]
[380150776,1755577843027,-471.41990258,0.00019452,2]
[380150777,1755577843040,-480.0,0.00019452,2]
[380150778,1755577843050,-480.0,0.00019452,2]
[380150779,1755577843059,-480.0,0.00019452,2]
[380150780,1755577843070,-480.0,0.00019452,2]
[380150781,1755577843079,-480.0,0.00019452,2]
[380150782,1755577843089,-1168.24,0.00019452,2]
[380150783,1755577843098,-483.38,0.00019452,2]
[380150784,1755577843109,-480.0,0.00019452,2]
[380150785,1755577843119,-480.0,0.00019452,2]
[380150786,1755577843129,-480.0,0.00019452,2]
[380150787,1755577843138,-480.0,0.00019452,2]
[380150788,1755577843148,-514.26,0.00019452,2]
[380150789,1755577843158,-480.0,0.00019452,2]
[380150790,1755577843167,-507.39012482,0.00019452,2]
[380150791,1755577843176,-480.0,0.00019452,2]
[380150792,1755577843186,-480.0,0.00019452,2]
[380150793,1755577843198,-380.0,0.00019452,2]
[380150794,1755577843207,-444.71016642,0.00019452,2]
[380150795,1755577843216,-480.0,0.00019452,2]
[380150796,1755577843319,-480.0,0.00019452,2]
[380150797,1755577843328,-480.0,0.00019452,2]
[380150798,1755577843338,-480.0,0.00019452,2]
[380150799,1755577843348,-440.0,0.00019452,2]
[380150800,1755577843358,-480.0,0.00019452,2]
[380150801,1755577843367,-480.0,0.00019452,2]
[380150802,1755577843377,-480.0,0.00019452,2]
[380150803,1755577843386,-440.0,0.00019452,2]
[380150804,1755577843395,-480.0,0.00019452,2]
[380150805,1755577843404,-3716.52,0.00019452,2]
[380150806,1755577843414,-409.30455658,0.00019452,2]
[380150807,1755577843423,-670.43,0.00019452,2]
[380150808,1755577843432,-450.21816792,0.00019452,2]
[380150809,1755577843441,-480.0,0.00019452,2]
[380150810,1755577843450,-440.0,0.00019452,2]
[380150811,1755577843459,-480.0,0.00019452,2]
[380150812,1755577843468,-480.0,0.00019452,2]
[380150813,1755577843478,-677.53,0.00019452,2]
[380150814,1755577843487,-440.0,0.00019452,2]
[380150815,1755577843496,-480.0,0.00019452,2]
[380150816,1755577843505,-480.0,0.00019452,2]
[380150817,1755577843515,-1942.95,0.00019452,2]
[380150818,1755577843524,-480.0,0.00019452,2]
[380150819,1755577843534,-480.0,0.00019452,2]
[380150820,1755577843543,-480.0,0.00019452,2]
[380150821,1755577843552,-480.0,0.00019452,2]
[380150822,1755577843561,-480.0,0.00019452,2]
[380150823,1755577843571,-480.0,0.00019452,2]
[380150824,1755577843580,-480.0,0.00019452,2]
[380150825,1755577843589,-480.0,0.00019452,2]
[380150826,1755577843598,-440.0,0.00019452,2]
[380150827,1755577843608,-242.05572297,0.00019452,2]
[380150828,1755577843617,-333.54105985,0.00019452,2]
[380150829,1755577843626,-480.0,0.00019452,2]
[380150830,1755577843636,-480.0,0.00019452,2]
[380150831,1755577843645,-480.0,0.00019452,2]
[380150832,1755577843654,-320.1,0.00019452,2]
[380150833,1755577843664,-480.0,0.00019452,2]
[380150834,1755577843673,-480.0,0.00019452,2]
[380150835,1755577843682,-460.0,0.00019452,2]
[380150836,1755577843691,-495.9,0.00019452,2]
[380150837,1755577843701,-283.98750397,0.00019452,2]
[380150838,1755577843711,-667.72,0.00019452,2]
[380150839,1755577843721,-480.0,0.00019452,2]
[380150840,1755577843731,-480.0,0.00019452,2]
[380150841,1755577843742,-480.0,0.00019452,2]
[380150842,1755577843751,-400.0,0.00019452,2]
[380150843,1755577843761,-480.0,0.00019452,2]
[380150844,1755577843770,-1082.35,0.00019452,2]
[380150845,1755577843779,-462.93761059,0.00019452,2]
[380150846,1755577843789,-539.54,0.00019452,2]
[380150847,1755577843798,-574.61336618,0.00019452,2]
[380150848,1755577843808,-480.0,0.00019452,2]
[380150849,1755577843817,-480.0,0.00019452,2]
[380150850,1755577843826,-480.0,0.00019452,2]
[380150851,1755577843836,-480.0,0.00019452,2]
[380150852,1755577843846,-856.58,0.00019452,2]
[380150853,1755577843857,-480.0,0.00019452,2]
[380150854,1755577843866,-360.0,0.00019452,2]
[380150855,1755577843876,-385.73877336,0.00019452,2]
[380150856,1755577843885,-480.0,0.00019452,2]
[380150857,1755577843894,-1474.07,0.00019452,2]
[380150858,1755577843903,-480.0,0.00019452,2]
[380150859,1755577843912,-480.0,0.00019452,2]
[380150860,1755577843924,-480.0,0.00019452,2]
[380150861,1755577843935,-480.0,0.00019452,2]
[380150862,1755577843944,-480.0,0.00019452,2]
[380150863,1755577843953,-959.37,0.00019452,2]
[380150864,1755577843963,-480.0,0.00019452,2]
[380150865,1755577843972,-480.0,0.00019452,2]
[380150866,1755577843982,-480.0,0.00019452,2]
[380150867,1755577843992,-480.0,0.00019452,2]
[380150868,1755577844002,-483.898958,0.00019452,2]
[380150869,1755577844011,-480.0,0.00019452,2]
[380150870,1755577844021,-480.0,0.00019452,2]
[380150871,1755577844031,-627.69097457,0.00019452,2]
[380150872,1755577844043,-333.03631376,0.00019452,2]
[380150873,1755577844052,-480.0,0.00019452,2]
[380150874,1755577844063,-259.5608512,0.00019452,2]
[380150875,1755577844074,-480.0,0.00019452,2]
[380150876,1755577844083,-594.45,0.00019452,2]
[380150877,1755577844092,-894.36,0.00019452,2]
[380150878,1755577844105,-480.0,0.00019452,2]
[380150879,1755577844114,-480.0,0.00019452,2]
[380150880,1755577844124,-480.0,0.00019452,2]
[380150881,1755577844133,-967.05,0.00019452,2]
[380150882,1755577844143,-409.99346068,0.00019452,2]
[380150883,1755577844153,-480.0,0.00019452,2]
[380150884,1755577844163,-808.7,0.00019452,2]
[380150885,1755577844175,-480.0,0.00019452,2]
[380150886,1755577844185,-480.0,0.00019452,2]
[380150887,1755577844196,-480.0,0.00019452,2]
[380150888,1755577844205,-480.0,0.00019452,2]
[380150889,1755577844215,-480.0,0.00019452,2]
[380150890,1755577844225,-750.98,0.00019452,2]
[380150891,1755577844236,-402.40411812,0.00019452,2]
[380150892,1755577844246,-666.27,0.00019452,2]
[380150893,1755577844255,-480.0,0.00019452,2]
[380150894,1755577844264,-480.0,0.00019452,2]
[380150895,1755577844274,-480.0,0.00019452,2]
[380150896,1755577844283,-480.0,0.00019452,2]
[380150897,1755577844292,-480.0,0.00019452,2]
[380150898,1755577844301,-400.0,0.00019452,2]
[380150899,1755577844310,-480.0,0.00019452,2]
[380150900,1755577844320,-400.0,0.00019452,2]
[380150901,1755577844329,-573.89,0.00019452,2]
[380150902,1755577844338,-838.61,0.00019452,2]
[380150903,1755577844347,-440.62627744,0.00019452,2]
[380150904,1755577844359,-312.69118259,0.00019452,2]
[380150905,1755577844368,-425.5094028,0.00019452,2]
[380150906,1755577844377,-480.0,0.00019452,2]
[380150907,1755577844385,-1946.4,0.00019452,2]
[380150908,1755577844395,-480.0,0.00019452,2]
[380150909,1755577844404,-480.0,0.00019452,2]
[380150910,1755577844413,-1586.8,0.00019452,2]
[380150911,1755577844422,-480.0,0.00019452,2]
[380150912,1755577844431,-1528.27,0.00019452,2]
[380150913,1755577844440,-484.98295218,0.00019452,2]
[380150914,1755577844450,-480.0,0.00019452,2]
[380150915,1755577844459,-1328.91,0.00019452,2]
[380150916,1755577844469,-834.18,0.00019452,2]
[380150917,1755577844480,-480.0,0.00019452,2]
[380150918,1755577844489,-480.0,0.00019452,2]
[380150919,1755577844498,-1226.65,0.00019452,2]
[380150920,1755577844508,-480.0,0.00019452,2]
[380150921,1755577844517,-480.0,0.00019452,2]
[380150922,1755577844526,-319.55577123,0.00019452,2]
[380150923,1755577844536,-480.0,0.00019452,2]
[380150924,1755577844545,-853.33,0.00019452,2]
[380150925,1755577844555,-480.0,0.00019452,2]
[380150926,1755577844564,-186.15581447,0.00019452,2]
[380150927,1755577844574,-574.55,0.00019452,2]
[380150928,1755577844583,-486.35893075,0.00019452,2]
[380150929,1755577844592,-480.0,0.00019452,2]
[380150930,1755577844602,-480.0,0.00019452,2]
[380150931,1755577844614,-1597.05,0.00019452,2]
[380150932,1755577844623,-857.47,0.00019452,2]
[380150933,1755577844633,-480.0,0.00019452,2]
[380150934,1755577844642,-651.92,0.00019452,2]
[380150935,1755577844651,-480.0,0.00019452,2]
[380150936,1755577844660,-480.0,0.00019452,2]
[380150937,1755577844670,-480.0,0.00019452,2]
[380150938,1755577844679,-480.0,0.00019452,2]
[380150939,1755577844690,-480.0,0.00019452,2]
[380150940,1755577844699,-2321.86,0.00019452,2]
[380150941,1755577844709,-480.0,0.00019452,2]
[380150942,1755577844718,-715.41,0.00019452,2]
[380150943,1755577844727,-707.57,0.00019452,2]
[380150944,1755577844735,-480.0,0.00019452,2]
[380150945,1755577844745,-1860.57,0.00019452,2]
[380150946,1755577844754,-480.0,0.00019452,2]
[380150947,1755577844762,-480.0,0.00019452,2]
[380150948,1755577844772,-480.0,0.00019452,2]
[380150949,1755577844781,-480.0,0.00019452,2]
[380150950,1755577844791,-2815.24,0.00019452,2]
[380150951,1755577844800,-480.0,0.00019452,2]
[380150952,1755577844809,-442.70117872,0.00019452,2]
[380150953,1755577844819,-480.0,0.00019452,2]
[380150954,1755577844828,-480.0,0.00019452,2]
[380150955,1755577844838,-480.0,0.00019452,2]
[380150956,1755577844847,-383.65292034,0.00019452,2]
[380150957,1755577844860,-500.0,0.00019452,2]
[380150958,1755577844869,-480.0,0.00019452,2]
[380150959,1755577844878,-480.0,0.00019452,2]
[380150960,1755577844888,-526.40821308,0.00019452,2]
[380150961,1755577844897,-480.0,0.00019452,2]
[380150962,1755577844907,-824.74,0.00019452,2]
[380150963,1755577844917,-480.0,0.00019452,2]
[380150964,1755577844926,-619.59,0.00019452,2]
[380150965,1755577844935,-5644.41,0.00019452,2]
[380150966,1755577844944,-491.46932585,0.00019452,2]
[380150967,1755577844953,-480.0,0.00019452,2]
[380150968,1755577844962,-480.0,0.00019452,2]
[380150969,1755577844971,-480.0,0.00019452,2]
[380150970,1755577844980,-480.0,0.00019452,2]
[380150971,1755577844990,-1736.61,0.00019452,2]
[380150972,1755577845000,-640.22,0.00019452,2]
[380150973,1755577845009,-480.0,0.00019452,2]
[380150974,1755577845099,-480.0,0.00019452,2]
[380150975,1755577845116,-759.73,0.00019452,2]
[380150976,1755577845125,-298.05894706,0.00019452,2]
[380150977,1755577845135,-1942.53,0.00019452,2]
[380150978,1755577845144,-480.0,0.00019452,2]
[380150979,1755577845154,-499.4,0.00019452,2]
[380150980,1755577845163,-480.0,0.00019452,2]
[380150981,1755577845172,-480.0,0.00019452,2]
[380150982,1755577845182,-480.0,0.00019452,2]
[380150983,1755577845191,-745.42,0.00019452,2]
[380150984,1755577845200,-361.87652166,0.00019452,2]
[380150985,1755577845209,-527.00644222,0.00019452,2]
[380150986,1755577845218,-480.0,0.00019452,2]
[380150987,1755577845227,-548.44,0.00019452,2]
[380150988,1755577845236,-480.0,0.00019452,2]
[380150989,1755577845246,-480.0,0.00019452,2]
[380150990,1755577845255,-480.0,0.00019452,2]
[380150991,1755577845264,-480.0,0.00019452,2]
[380150992,1755577845273,-480.0,0.00019452,2]
[380150993,1755577845282,-500.0,0.00019452,2]
[380150994,1755577845291,-200.0,0.00019459,20]
[380150995,1755577845301,-200.0,0.00019459,20]
[380150996,1755577845310,-200.0,0.00019459,20]
[380150997,1755577845318,-200.0,0.00019459,20]
[380150999,1755577845327,-200.0,0.00019459,20]
[380151001,1755577845336,-200.0,0.00019459,20]
[380151003,1755577845346,-200.0,0.00019459,20]
[380151005,1755577845356,-200.0,0.00019459,20]
[380151008,1755577845365,-200.0,0.00019459,20]
[380151010,1755577845374,-200.0,0.00019459,20]
[380151011,1755577845383,-200.0,0.00019459,20]
[380151012,1755577845392,-200.0,0.00019459,20]
[380151013,1755577845401,-200.0,0.00019459,20]
[380151015,1755577845411,-200.0,0.00019459,20]
[380151017,1755577845420,-200.0,0.00019459,20]
[380151018,1755577845430,-200.0,0.00019459,20]
[380151019,1755577845439,-200.0,0.00019459,20]
[380151020,1755577845448,-200.0,0.00019459,20]
[380151021,1755577845458,-200.0,0.00019459,20]
[380151022,1755577845467,-200.0,0.00019459,20]
[380151023,1755577845476,-151.203046,0.00019459,2]
[380151025,1755577845486,-151.0,0.00019459,2]
[380151026,1755577845495,-151.0,0.00019459,2]
[380151028,1755577845505,-151.0,0.00019459,2]
[380151030,1755577845514,-151.0,0.00019459,2]
[380151031,1755577845523,-151.0,0.00019459,2]
[380151032,1755577845532,-1000.0,0.0001946,2]
[380151033,1755577845541,-347.0,0.00019468,2]
[380151034,1755577845550,-201.99078818,0.00019489,2]
[380151035,1755577845560,-600.0,0.00019561,20]
[380151036,1755577845569,-691.64677362,0.0001962,2]
[380151037,1755577845579,-201.99078818,0.00019695,2]
[380151038,1755577845588,-500.0,0.00019721,2]
[380151039,1755577845597,-471.39321636,0.00019721,2]
[380151040,1755577845609,-1000.0,0.00019721,2]
[380151041,1755577845618,-1000.0,0.00019721,2]
[380151042,1755577845627,-151.0,0.00019726,2]
[380151044,1755577845636,-151.0,0.00019726,2]
[380151045,1755577845646,-151.0,0.00019726,2]
[380151046,1755577845655,-516.86601324,0.00019726,2]
[380151047,1755577845665,-212.11507356,0.00019726,2]
[380151048,1755577845674,-151.0,0.00019726,2]
[380151049,1755577845683,-151.0,0.00019726,2]
[380151050,1755577845692,-151.47622451,0.00019726,2]
[380151051,1755577845701,-151.0,0.00019726,2]
[380151052,1755577845710,-151.0,0.00019726,2]
[380151053,1755577845719,-151.0,0.00019726,2]
[380151054,1755577845728,-151.0,0.00019726,2]
[380151055,1755577845738,-151.0,0.00019726,2]
[380151056,1755577845747,-151.0,0.00019726,2]
[380151057,1755577845756,-418.0,0.00019726,2]
[380151058,1755577845765,-151.0,0.00019726,2]
[380151059,1755577845774,-151.0,0.00019726,2]
[380151060,1755577845783,-503.54635644,0.00019726,2]
[380151061,1755577845792,-264.36724313,0.00019726,2]
[380151062,1755577845802,-151.0,0.00019726,2]
[380151063,1755577845811,-199.40060872,0.00019726,2]
[380151064,1755577845822,-500.0,0.00019726,2]
[380151065,1755577845831,-480.0,0.00019726,2]
[380151066,1755577845841,-480.0,0.00019726,2]
[380151067,1755577845850,-433.10989227,0.00019726,2]
[380151068,1755577845859,-480.0,0.00019726,2]
[380151069,1755577845868,-480.0,0.00019726,2]
[380151070,1755577845877,-480.0,0.00019726,2]
[380151071,1755577845886,-189.02616,0.00019726,2]
[380151072,1755577845895,-5292.0,0.00019726,2]
[380151073,1755577845904,-480.0,0.00019726,2]
[380151074,1755577845914,-480.0,0.00019726,2]
[380151075,1755577845923,-480.0,0.00019726,2]
[380151076,1755577845933,-480.0,0.00019726,2]
[380151077,1755577845942,-480.0,0.00019726,2]
[380151078,1755577845951,-480.0,0.00019726,2]
[380151079,1755577845961,-1168.24,0.00019726,2]
[380151080,1755577845970,-483.38,0.00019726,2]
[380151081,1755577845979,-480.0,0.00019726,2]
[380151082,1755577845988,-480.0,0.00019726,2]
[380151083,1755577845998,-480.0,0.00019726,2]
[380151084,1755577846007,-480.0,0.00019726,2]
[380151085,1755577846016,-514.26,0.00019726,2]
[380151086,1755577846030,-480.0,0.00019726,2]
[380151087,1755577846039,-278.69425982,0.00019726,2]
[380151088,1755577846048,-480.0,0.00019726,2]
[380151089,1755577846057,-327.36062225,0.00019726,2]
[380151090,1755577846068,-480.0,0.00019726,2]
[380151091,1755577846078,-480.0,0.00019726,2]
[380151092,1755577846088,-480.0,0.00019726,2]
[380151093,1755577846098,-480.0,0.00019726,2]
[380151094,1755577846112,-480.0,0.00019726,2]
[380151095,1755577846122,-480.0,0.00019726,2]
[380151096,1755577846131,-480.0,0.00019726,2]
[380151097,1755577846139,-3716.52,0.00019726,2]
[380151098,1755577846149,-670.43,0.00019726,2]
[380151099,1755577846158,-480.0,0.00019726,2]
[380151100,1755577846167,-480.0,0.00019726,2]
[380151101,1755577846176,-480.0,0.00019726,2]
[380151102,1755577846185,-677.53,0.00019726,2]
[380151103,1755577846195,-480.0,0.00019726,2]
[380151104,1755577846204,-239.115785,0.00019726,2]
[380151105,1755577846213,-151.0,0.00019726,2]
[380151106,1755577846223,-480.0,0.00019726,2]
[380151107,1755577846231,-247.839198,0.00019726,2]
[380151108,1755577846240,-1942.95,0.00019726,2]
[380151109,1755577846250,-247.839198,0.00019726,2]
[380151110,1755577846259,-480.0,0.00019726,2]
[380151111,1755577846268,-480.0,0.00019726,2]
[380151112,1755577846277,-480.0,0.00019726,2]
[380151113,1755577846286,-607.05299586,0.00019726,2]
[380151114,1755577846296,-480.0,0.00019726,2]
[380151115,1755577846305,-360.0,0.00019726,2]
[380151116,1755577846314,-480.0,0.00019726,2]
[380151117,1755577846324,-360.0,0.00019726,2]
[380151118,1755577846333,-151.0,0.00019726,2]
[380151119,1755577846343,-480.0,0.00019726,2]
[380151120,1755577846353,-151.0,0.00019726,2]
[380151121,1755577846362,-480.0,0.00019726,2]
[380151122,1755577846371,-151.0,0.00019726,2]
[380151123,1755577846380,-151.0,0.00019726,2]
[380151124,1755577846390,-291.458912,0.00019726,2]
[380151125,1755577846399,-768.62577,0.00019726,2]
[380151126,1755577846408,-768.62577,0.00019726,2]
[380151127,1755577846417,-480.0,0.00019726,2]
[380151128,1755577846427,-495.9,0.00019726,2]
[380151129,1755577846436,-184.7817,0.00019726,2]
[380151130,1755577846445,-184.7817,0.00019726,2]
[380151131,1755577846454,-667.72,0.00019726,2]
[380151132,1755577846463,-424.02754162,0.00019726,2]
[380151133,1755577846472,-480.0,0.00019726,2]
[380151134,1755577846481,-480.0,0.00019726,2]
[380151135,1755577846490,-1082.35,0.00019726,2]
[380151136,1755577846499,-151.0,0.00019726,2]
[380151137,1755577846508,-480.0,0.00019726,2]
[380151138,1755577846517,-539.54,0.00019726,2]
[380151139,1755577846526,-480.0,0.00019726,2]
[380151140,1755577846535,-586.517009,0.00019726,2]
[380151141,1755577846543,-400.0,0.00019726,2]
[380151142,1755577846552,-586.517009,0.00019726,2]
[380151143,1755577846561,-151.0,0.00019726,2]
[380151144,1755577846570,-151.0,0.00019726,2]
[380151145,1755577846580,-151.0,0.00019726,2]
[380151146,1755577846589,-440.0,0.00019726,2]
[380151147,1755577846598,-151.0,0.00019726,2]
[380151148,1755577846609,-480.0,0.00019726,2]
[380151149,1755577846619,-151.0,0.00019726,2]
[380151150,1755577846704,-151.0,0.00019726,2]
[380151151,1755577846714,-856.58,0.00019726,2]
[380151152,1755577846723,-325.663638,0.00019726,2]
[380151153,1755577846732,-325.663638,0.00019726,2]
[380151154,1755577846742,-480.0,0.00019726,2]
[380151155,1755577846751,-485.16975571,0.00019726,2]
[380151156,1755577846759,-1474.07,0.00019726,2]